[Event "*** SCC Grand Prix: Titled Tuesday Blitz"]
[Site "Chess.com"]
[Date "2020.08.11"]
[Round "10"]
[White "AlanZhang"]
[Black "Euge_chess"]
[Result "1-0"]
[WhiteElo "2165"]
[BlackElo "2043"]
[TimeControl "180+1"]
[EndTime "11:58:47 PDT"]
[Termination "AlanZhang won on time"]

1. e4 {[%clk 0:03:00.9]} 1... e5 {[%clk 0:02:59.1]} 2. Nf3 {[%clk 0:03:00.2]}
2... Nc6 {[%clk 0:02:59.2]} 3. Bb5 {[%clk 0:03:00.8]} 3... Nf6 {[%clk
0:02:59.2]} 4. d3 {[%clk 0:02:59.8]} 4... Bc5 {[%clk 0:02:57.5]} 5. c3 {[%clk
0:03:00.1]} 5... O-O {[%clk 0:02:55.5]} 6. Bxc6 {[%clk 0:02:58.1]} 6... bxc6
{[%clk 0:02:43.4]} 7. Nxe5 {[%clk 0:02:57.2]} 7... Re8 {[%clk 0:02:39]} 8. Nf3
{[%clk 0:02:53.4]} 8... d5 {[%clk 0:02:34.6]} 9. e5 {[%clk 0:02:52]} 9... d4
{[%clk 0:02:21.4]} 10. O-O {[%clk 0:02:43.6]} 10... Ng4 {[%clk 0:02:17.9]} 11.
Bf4 {[%clk 0:02:12.8]} 11... Bf5 {[%clk 0:01:45.7]} 12. h3 {[%clk 0:02:02.8]}
12... Nh6 {[%clk 0:01:45.1]} 13. b4 {[%clk 0:01:47.3]} 13... Bb6 {[%clk
0:01:40.1]} 14. c4 {[%clk 0:01:43.2]} 14... c5 {[%clk 0:01:32.5]} 15. a3 {[%clk
0:01:35.9]} 15... c6 {[%clk 0:01:19.8]} 16. Re1 {[%clk 0:01:11.3]} 16... a5
{[%clk 0:01:17.5]} 17. bxc5 {[%clk 0:01:01.7]} 17... Bxc5 {[%clk 0:01:16.3]} 18.
Qc2 {[%clk 0:01:02]} 18... Bg6 {[%clk 0:00:59.1]} 19. Nbd2 {[%clk 0:00:59.1]}
19... Nf5 {[%clk 0:00:57.1]} 20. Ne4 {[%clk 0:00:50.8]} 20... Ba7 {[%clk
0:00:53.2]} 21. Rab1 {[%clk 0:00:35.5]} 21... h6 {[%clk 0:00:47]} 22. Rb7 {[%clk
0:00:26.8]} 22... c5 {[%clk 0:00:41.1]} 23. Reb1 {[%clk 0:00:17.1]} 23... Nh4
{[%clk 0:00:38.4]} 24. Nxh4 {[%clk 0:00:16.6]} 24... Qxh4 {[%clk 0:00:37.6]} 25.
Bg3 {[%clk 0:00:16.1]} 25... Qh5 {[%clk 0:00:36.6]} 26. Nd6 {[%clk 0:00:15.6]}
26... Rf8 {[%clk 0:00:32.5]} 27. Re7 {[%clk 0:00:13.7]} 27... Bb8 {[%clk
0:00:26]} 28. Rbb7 {[%clk 0:00:03.5]} 28... Bxd6 {[%clk 0:00:25.8]} 29. exd6
{[%clk 0:00:04.4]} 29... Rad8 {[%clk 0:00:26.1]} 30. d7 {[%clk 0:00:03.1]} 30...
Bf5 {[%clk 0:00:24.9]} 31. Bc7 {[%clk 0:00:02.6]} 31... Rxd7 {[%clk 0:00:23.5]}
32. Rxd7 {[%clk 0:00:02.2]} 32... Bxd7 {[%clk 0:00:23.3]} 33. Bd6 {[%clk
0:00:02.8]} 33... Bc6 {[%clk 0:00:22.6]} 34. Bxf8 {[%clk 0:00:02.4]} 34... Bxb7
{[%clk 0:00:22.2]} 35. Bd6 {[%clk 0:00:02.4]} 35... Qg6 {[%clk 0:00:20.4]} 36.
Bg3 {[%clk 0:00:01.9]} 36... Bc6 {[%clk 0:00:19.6]} 37. Qb3 {[%clk 0:00:02.2]}
37... Kh7 {[%clk 0:00:18.6]} 38. Qb6 {[%clk 0:00:01.9]} 38... Ba4 {[%clk
0:00:13.8]} 39. Qxc5 {[%clk 0:00:02.2]} 39... Qxd3 {[%clk 0:00:13.1]} 40. Qxa5
{[%clk 0:00:02.8]} 40... Bc2 {[%clk 0:00:11.8]} 41. c5 {[%clk 0:00:02.4]} 41...
Qd1+ {[%clk 0:00:11.2]} 42. Kh2 {[%clk 0:00:02.3]} 42... d3 {[%clk 0:00:09.3]}
43. c6 {[%clk 0:00:01.9]} 43... d2 {[%clk 0:00:08.3]} 44. c7 {[%clk 0:00:02.4]}
44... Qe1 {[%clk 0:00:05.8]} 45. c8=Q {[%clk 0:00:02.2]} 45... d1=Q {[%clk
0:00:04.4]} 46. Qxe1 {[%clk 0:00:02.7]} 46... Qxe1 {[%clk 0:00:03.8]} 47. Qxc2+
{[%clk 0:00:03.3]} 47... g6 {[%clk 0:00:03.5]} 48. a4 {[%clk 0:00:03.7]} 48...
Kg7 {[%clk 0:00:03]} 49. Qa2 {[%clk 0:00:02.7]} 49... Qa5 {[%clk 0:00:02.7]} 50.
Qa3 {[%clk 0:00:01.7]} 50... h5 {[%clk 0:00:02.1]} 51. Bd6 {[%clk 0:00:02]}
51... Qa6 {[%clk 0:00:01.2]} 52. g3 {[%clk 0:00:02.1]} 1-0

[Event "*** SCC Grand Prix: Titled Tuesday Blitz"]
[Site "Chess.com"]
[Date "2020.08.11"]
[Round "10"]
[White "xamax2000"]
[Black "Kobalia"]
[Result "1-0"]
[WhiteElo "2656"]
[BlackElo "2769"]
[TimeControl "180+1"]
[EndTime "11:58:48 PDT"]
[Termination "xamax2000 won on time"]

1. e4 {[%clk 0:03:00.9]} 1... c5 {[%clk 0:02:59.2]} 2. Nf3 {[%clk 0:03:01.1]}
2... e6 {[%clk 0:02:59.5]} 3. d4 {[%clk 0:03:00.5]} 3... cxd4 {[%clk 0:02:59.8]}
4. Nxd4 {[%clk 0:03:01.4]} 4... a6 {[%clk 0:03:00.3]} 5. Qd3 {[%clk 0:03:01.4]}
5... Nf6 {[%clk 0:02:55.4]} 6. Be2 {[%clk 0:03:00.8]} 6... e5 {[%clk 0:02:49.9]}
7. Nf3 {[%clk 0:03:00.4]} 7... Nc6 {[%clk 0:02:48.8]} 8. c4 {[%clk 0:02:48.5]}
8... Bc5 {[%clk 0:02:46.5]} 9. Nc3 {[%clk 0:02:47]} 9... h6 {[%clk 0:02:46.1]}
10. Be3 {[%clk 0:02:45.8]} 10... d6 {[%clk 0:02:45.7]} 11. Rd1 {[%clk
0:02:44.7]} 11... Be6 {[%clk 0:02:44.3]} 12. O-O {[%clk 0:02:42.8]} 12... O-O
{[%clk 0:02:43.2]} 13. a3 {[%clk 0:02:40.9]} 13... Bg4 {[%clk 0:02:36.8]} 14. b4
{[%clk 0:02:35.8]} 14... Bxe3 {[%clk 0:02:34.2]} 15. Qxe3 {[%clk 0:02:36.7]}
15... Bxf3 {[%clk 0:02:34.3]} 16. Bxf3 {[%clk 0:02:37.1]} 16... Qc7 {[%clk
0:02:29.5]} 17. Ne2 {[%clk 0:02:34.6]} 17... a5 {[%clk 0:02:26.8]} 18. Qb3
{[%clk 0:02:12]} 18... axb4 {[%clk 0:02:25.4]} 19. axb4 {[%clk 0:02:12.1]} 19...
Nh7 {[%clk 0:02:25.4]} 20. h4 {[%clk 0:02:07.8]} 20... Rfd8 {[%clk 0:02:22.6]}
21. Rd3 {[%clk 0:02:01.5]} 21... Qb6 {[%clk 0:02:20.5]} 22. Rb1 {[%clk
0:01:48.6]} 22... Nf6 {[%clk 0:02:12]} 23. g3 {[%clk 0:01:43]} 23... h5 {[%clk
0:02:09.9]} 24. Kg2 {[%clk 0:01:42.4]} 24... Ng4 {[%clk 0:02:04.3]} 25. Bxg4
{[%clk 0:01:36.9]} 25... hxg4 {[%clk 0:02:04.2]} 26. Nc3 {[%clk 0:01:34.6]}
26... Nd4 {[%clk 0:02:02.5]} 27. Nd5 {[%clk 0:01:34.3]} 27... Qa7 {[%clk
0:01:41.9]} 28. Qd1 {[%clk 0:01:20.3]} 28... Qa2 {[%clk 0:01:41]} 29. Rc1 {[%clk
0:01:20.5]} 29... Nf3 {[%clk 0:01:15.4]} 30. Rxf3 {[%clk 0:01:10.9]} 30... gxf3+
{[%clk 0:01:14.8]} 31. Qxf3 {[%clk 0:01:11.8]} 31... Qb2 {[%clk 0:01:10.2]} 32.
Rc3 {[%clk 0:01:09.9]} 32... Ra2 {[%clk 0:01:08.1]} 33. h5 {[%clk 0:01:06.8]}
33... Qe2 {[%clk 0:01:07.3]} 34. Qxe2 {[%clk 0:00:57.7]} 34... Rxe2 {[%clk
0:01:06.8]} 35. Kf3 {[%clk 0:00:58.6]} 35... Rb2 {[%clk 0:01:02.4]} 36. Ra3
{[%clk 0:00:57]} 36... Rc2 {[%clk 0:01:00.9]} 37. Ne3 {[%clk 0:00:49.9]} 37...
Rb2 {[%clk 0:00:58.2]} 38. Nd5 {[%clk 0:00:49]} 38... Rb8 {[%clk 0:00:40.1]} 39.
Ra7 {[%clk 0:00:41.4]} 39... Rc2 {[%clk 0:00:34.4]} 40. Ne3 {[%clk 0:00:40.3]}
40... Rb2 {[%clk 0:00:34.6]} 41. Nd5 {[%clk 0:00:40.3]} 41... g6 {[%clk
0:00:27.2]} 42. hxg6 {[%clk 0:00:10.9]} 42... fxg6 {[%clk 0:00:26.7]} 43. g4
{[%clk 0:00:06.2]} 43... Rf8+ {[%clk 0:00:25.1]} 44. Kg3 {[%clk 0:00:06.7]}
44... Rbxf2 {[%clk 0:00:13.9]} 45. Rxb7 {[%clk 0:00:06]} 45... R2f7 {[%clk
0:00:09.7]} 46. Rb6 {[%clk 0:00:05.4]} 46... g5 {[%clk 0:00:08.8]} 47. Rxd6
{[%clk 0:00:04.6]} 47... Rf3+ {[%clk 0:00:08.9]} 48. Kg2 {[%clk 0:00:05.3]}
48... Rf2+ {[%clk 0:00:09]} 49. Kg1 {[%clk 0:00:06]} 49... Rb2 {[%clk
0:00:07.8]} 50. Rg6+ {[%clk 0:00:05.2]} 50... Kh7 {[%clk 0:00:07.9]} 51. Rxg5
{[%clk 0:00:05.7]} 51... Ra8 {[%clk 0:00:07.9]} 52. Rf5 {[%clk 0:00:06]} 52...
Ra1+ {[%clk 0:00:07]} 53. Rf1 {[%clk 0:00:06.1]} 53... Raa2 {[%clk 0:00:07.4]}
54. Rc1 {[%clk 0:00:06.3]} 54... Rg2+ {[%clk 0:00:07.2]} 55. Kh1 {[%clk
0:00:06.8]} 55... Rxg4 {[%clk 0:00:06.5]} 56. Nf6+ {[%clk 0:00:06.8]} 1-0

[Event "*** SCC Grand Prix: Titled Tuesday Blitz"]
[Site "Chess.com"]
[Date "2020.08.11"]
[Round "10"]
[White "tptagain"]
[Black "Son_of_Sultan"]
[Result "1-0"]
[WhiteElo "2917"]
[BlackElo "2715"]
[TimeControl "180+1"]
[EndTime "11:58:51 PDT"]
[Termination "tptagain won on time"]

1. e4 {[%clk 0:03:00.9]} 1... c5 {[%clk 0:02:59.2]} 2. Nc3 {[%clk 0:03:01.1]}
2... Nc6 {[%clk 0:02:48.5]} 3. Nf3 {[%clk 0:02:59.8]} 3... d6 {[%clk 0:02:46]}
4. Bb5 {[%clk 0:02:54.9]} 4... e5 {[%clk 0:02:28]} 5. d3 {[%clk 0:02:53.7]} 5...
Be7 {[%clk 0:02:26.1]} 6. h3 {[%clk 0:02:53.6]} 6... Nf6 {[%clk 0:02:25.1]} 7.
O-O {[%clk 0:02:52.6]} 7... O-O {[%clk 0:02:23.3]} 8. a4 {[%clk 0:02:52.6]} 8...
Nd4 {[%clk 0:02:19.9]} 9. Bc4 {[%clk 0:02:51.1]} 9... Be6 {[%clk 0:02:17.2]} 10.
Nd2 {[%clk 0:02:42.6]} 10... d5 {[%clk 0:02:08.4]} 11. exd5 {[%clk 0:02:34.3]}
11... Nxd5 {[%clk 0:02:07.9]} 12. Re1 {[%clk 0:02:33.3]} 12... f6 {[%clk
0:01:43]} 13. Nxd5 {[%clk 0:02:33]} 13... Bxd5 {[%clk 0:01:42.7]} 14. c3 {[%clk
0:02:33.4]} 14... Bxc4 {[%clk 0:01:35.1]} 15. Nxc4 {[%clk 0:02:33.4]} 15... Ne6
{[%clk 0:01:27.2]} 16. Qg4 {[%clk 0:02:01.3]} 16... Qd5 {[%clk 0:00:58.1]} 17.
Ne3 {[%clk 0:01:42.3]} 17... Qc6 {[%clk 0:00:55]} 18. Nf5 {[%clk 0:01:41.6]}
18... Rae8 {[%clk 0:00:47.1]} 19. Bh6 {[%clk 0:01:28]} 19... Rf7 {[%clk
0:00:46.7]} 20. Bd2 {[%clk 0:01:13.3]} 20... Kh8 {[%clk 0:00:45.9]} 21. f4
{[%clk 0:01:11.2]} 21... Bd6 {[%clk 0:00:40.7]} 22. Nxd6 {[%clk 0:01:02.8]}
22... Qxd6 {[%clk 0:00:41.6]} 23. fxe5 {[%clk 0:01:03]} 23... Qxd3 {[%clk
0:00:37.6]} 24. Rad1 {[%clk 0:00:59]} 24... Qg6 {[%clk 0:00:33.6]} 25. Qxg6
{[%clk 0:00:53.6]} 25... hxg6 {[%clk 0:00:34.5]} 26. exf6 {[%clk 0:00:53.2]}
26... gxf6 {[%clk 0:00:33.6]} 27. Bc1 {[%clk 0:00:52.2]} 27... Kg7 {[%clk
0:00:30.7]} 28. Kf2 {[%clk 0:00:51]} 28... Rfe7 {[%clk 0:00:30.5]} 29. h4 {[%clk
0:00:48.1]} 29... Kf7 {[%clk 0:00:29.7]} 30. Kf3 {[%clk 0:00:47.1]} 30... b6
{[%clk 0:00:28.8]} 31. Kf2 {[%clk 0:00:45.4]} 31... Ng7 {[%clk 0:00:27.1]} 32.
Rxe7+ {[%clk 0:00:45]} 32... Rxe7 {[%clk 0:00:27.1]} 33. g3 {[%clk 0:00:42.8]}
33... Nf5 {[%clk 0:00:25.3]} 34. Bf4 {[%clk 0:00:41.1]} 34... Ke6 {[%clk
0:00:23.6]} 35. Rd8 {[%clk 0:00:36.7]} 35... Rd7 {[%clk 0:00:20.6]} 36. Rg8
{[%clk 0:00:36.8]} 36... Kf7 {[%clk 0:00:20.4]} 37. Ra8 {[%clk 0:00:37]} 37...
Ng7 {[%clk 0:00:19.2]} 38. Bb8 {[%clk 0:00:35.4]} 38... a5 {[%clk 0:00:17.6]}
39. Bf4 {[%clk 0:00:29.7]} 39... Ne6 {[%clk 0:00:16.7]} 40. Be3 {[%clk
0:00:30.2]} 40... Nc7 {[%clk 0:00:14.4]} 41. Ra7 {[%clk 0:00:26.7]} 41... Ke6
{[%clk 0:00:13.6]} 42. g4 {[%clk 0:00:26.3]} 42... Nd5 {[%clk 0:00:12.9]} 43.
Rxd7 {[%clk 0:00:25.7]} 43... Kxd7 {[%clk 0:00:13]} 44. h5 {[%clk 0:00:26.1]}
44... gxh5 {[%clk 0:00:13]} 45. gxh5 {[%clk 0:00:27]} 45... Ke6 {[%clk
0:00:13.4]} 46. Kf3 {[%clk 0:00:26.8]} 46... f5 {[%clk 0:00:12.9]} 47. Bg5
{[%clk 0:00:24.9]} 47... c4 {[%clk 0:00:11.4]} 48. Bd8 {[%clk 0:00:23.9]} 48...
Kf7 {[%clk 0:00:11.3]} 49. Kg3 {[%clk 0:00:21.4]} 49... Kg7 {[%clk 0:00:11.2]}
50. Kh4 {[%clk 0:00:20.9]} 50... Kh6 {[%clk 0:00:11.1]} 51. Bg5+ {[%clk
0:00:21.1]} 51... Kg7 {[%clk 0:00:11.2]} 52. Bd2 {[%clk 0:00:21.6]} 52... Kf6
{[%clk 0:00:11.1]} 53. Bc1 {[%clk 0:00:21.8]} 53... Nc7 {[%clk 0:00:08.5]} 54.
Bg5+ {[%clk 0:00:21.9]} 54... Kf7 {[%clk 0:00:08]} 55. Bf4 {[%clk 0:00:20.8]}
55... Nd5 {[%clk 0:00:07.2]} 56. Kg5 {[%clk 0:00:21.4]} 56... Ke6 {[%clk
0:00:05.4]} 57. h6 {[%clk 0:00:21.5]} 57... Nf6 {[%clk 0:00:03]} 58. Kg6 {[%clk
0:00:20.9]} 1-0

[Event "*** SCC Grand Prix: Titled Tuesday Blitz"]
[Site "Chess.com"]
[Date "2020.08.11"]
[Round "10"]
[White "MrChampion_Coach"]
[Black "UCantHandleDenker"]
[Result "1/2-1/2"]
[WhiteElo "2453"]
[BlackElo "2565"]
[TimeControl "180+1"]
[EndTime "11:58:56 PDT"]
[Termination "Game drawn by repetition"]

1. e4 {[%clk 0:03:00.9]} 1... d6 {[%clk 0:02:59.5]} 2. d4 {[%clk 0:03:00.4]}
2... Nf6 {[%clk 0:02:59]} 3. Nc3 {[%clk 0:03:00.2]} 3... e5 {[%clk 0:02:58.7]}
4. Nf3 {[%clk 0:02:59.9]} 4... Nbd7 {[%clk 0:02:58]} 5. Bc4 {[%clk 0:02:59]}
5... Be7 {[%clk 0:02:57.4]} 6. O-O {[%clk 0:02:58.8]} 6... O-O {[%clk
0:02:56.9]} 7. a4 {[%clk 0:02:56.9]} 7... c6 {[%clk 0:02:56.7]} 8. Re1 {[%clk
0:02:56]} 8... b6 {[%clk 0:02:56.1]} 9. h3 {[%clk 0:02:48]} 9... a6 {[%clk
0:02:55.4]} 10. d5 {[%clk 0:02:45.6]} 10... cxd5 {[%clk 0:02:50.6]} 11. Nxd5
{[%clk 0:02:44.1]} 11... Bb7 {[%clk 0:02:50.2]} 12. Nxe7+ {[%clk 0:02:31.7]}
12... Qxe7 {[%clk 0:02:49.3]} 13. Nh4 {[%clk 0:02:05.2]} 13... Nxe4 {[%clk
0:02:22]} 14. Nf5 {[%clk 0:02:04.8]} 14... Qf6 {[%clk 0:02:21.5]} 15. Qg4 {[%clk
0:02:04.1]} 15... d5 {[%clk 0:02:01.3]} 16. Rxe4 {[%clk 0:01:18]} 16... dxc4
{[%clk 0:01:22.4]} 17. Bg5 {[%clk 0:01:02]} 17... Qe6 {[%clk 0:01:20.1]} 18.
Ne7+ {[%clk 0:00:35.9]} 18... Kh8 {[%clk 0:01:16.6]} 19. Qxe6 {[%clk 0:00:29.9]}
19... fxe6 {[%clk 0:01:17.5]} 20. Rxc4 {[%clk 0:00:30.2]} 20... Nc5 {[%clk
0:01:08.8]} 21. b4 {[%clk 0:00:27.1]} 21... Ne4 {[%clk 0:01:08.4]} 22. Rc7
{[%clk 0:00:26]} 22... Bd5 {[%clk 0:00:43.6]} 23. Be3 {[%clk 0:00:25.2]} 23...
Nd6 {[%clk 0:00:37.9]} 24. Nxd5 {[%clk 0:00:21.3]} 24... exd5 {[%clk 0:00:37.5]}
25. Rd7 {[%clk 0:00:20.8]} 25... Nc4 {[%clk 0:00:36.3]} 26. Rxd5 {[%clk
0:00:20.8]} 26... Nxe3 {[%clk 0:00:36.2]} 27. fxe3 {[%clk 0:00:21.7]} 27... Rac8
{[%clk 0:00:36.7]} 28. Rxe5 {[%clk 0:00:20.7]} 28... Rxc2 {[%clk 0:00:36.7]} 29.
Rf1 {[%clk 0:00:21.6]} 29... Rd8 {[%clk 0:00:35.5]} 30. Rd5 {[%clk 0:00:20.8]}
30... Re8 {[%clk 0:00:34.3]} 31. Rd6 {[%clk 0:00:20.8]} 31... h6 {[%clk
0:00:33.3]} 32. Rf3 {[%clk 0:00:21]} 32... b5 {[%clk 0:00:29.6]} 33. Rxa6 {[%clk
0:00:19.9]} 33... bxa4 {[%clk 0:00:29.3]} 34. Rxa4 {[%clk 0:00:20.8]} 34... Rb2
{[%clk 0:00:27.7]} 35. Kh2 {[%clk 0:00:15.4]} 35... Re7 {[%clk 0:00:26.9]} 36.
Kg3 {[%clk 0:00:14.1]} 36... Kh7 {[%clk 0:00:26.2]} 37. h4 {[%clk 0:00:13.7]}
37... Rb3 {[%clk 0:00:25.4]} 38. h5 {[%clk 0:00:13.8]} 38... Rexe3 {[%clk
0:00:23.1]} 39. Rxe3 {[%clk 0:00:13.2]} 39... Rxe3+ {[%clk 0:00:24]} 40. Kf4
{[%clk 0:00:13.4]} 40... Rb3 {[%clk 0:00:24.9]} 41. g4 {[%clk 0:00:12.7]} 41...
Rb1 {[%clk 0:00:22]} 42. Kf5 {[%clk 0:00:11.3]} 42... Rb3 {[%clk 0:00:19.4]} 43.
Ke4 {[%clk 0:00:10.2]} 43... Rb1 {[%clk 0:00:18.7]} 44. Kd5 {[%clk 0:00:10.1]}
44... Rd1+ {[%clk 0:00:17.7]} 45. Kc6 {[%clk 0:00:09.4]} 45... Rc1+ {[%clk
0:00:18.2]} 46. Kb7 {[%clk 0:00:09.3]} 46... Rc4 {[%clk 0:00:18.2]} 47. Kb6
{[%clk 0:00:07]} 47... Rxg4 {[%clk 0:00:18]} 48. Ka5 {[%clk 0:00:07.3]} 48...
Rg5+ {[%clk 0:00:17.7]} 49. b5 {[%clk 0:00:08.2]} 49... Rxh5 {[%clk 0:00:18.6]}
50. Ka6 {[%clk 0:00:08.1]} 50... Rh1 {[%clk 0:00:16.9]} 51. Rb4 {[%clk
0:00:07.6]} 51... Ra1+ {[%clk 0:00:17.2]} 52. Kb7 {[%clk 0:00:07.7]} 52... Rf1
{[%clk 0:00:17.1]} 53. b6 {[%clk 0:00:07.6]} 53... h5 {[%clk 0:00:17.2]} 54. Ka8
{[%clk 0:00:07.3]} 54... Rf8+ {[%clk 0:00:16.5]} 55. Ka7 {[%clk 0:00:06.9]}
55... Kh6 {[%clk 0:00:16.5]} 56. Rc4 {[%clk 0:00:06.5]} 56... Rf7+ {[%clk
0:00:14.4]} 57. Rc7 {[%clk 0:00:06.4]} 57... Rf1 {[%clk 0:00:13.5]} 58. Rc6+
{[%clk 0:00:06.4]} 58... g6 {[%clk 0:00:13]} 59. b7 {[%clk 0:00:07.3]} 59...
Ra1+ {[%clk 0:00:13.1]} 60. Ra6 {[%clk 0:00:06.7]} 60... Rb1 {[%clk 0:00:11.8]}
61. Rb6 {[%clk 0:00:06.8]} 61... Ra1+ {[%clk 0:00:12.1]} 62. Ra6 {[%clk
0:00:07]} 62... Rb1 {[%clk 0:00:12.5]} 63. Rb6 {[%clk 0:00:06.3]} 63... Ra1+
{[%clk 0:00:12.6]} 64. Ra6 {[%clk 0:00:06.5]} 1/2-1/2

[Event "*** SCC Grand Prix: Titled Tuesday Blitz"]
[Site "Chess.com"]
[Date "2020.08.11"]
[Round "10"]
[White "Guenplen"]
[Black "Shahinyan_ChessMood"]
[Result "1-0"]
[WhiteElo "2880"]
[BlackElo "2710"]
[TimeControl "180+1"]
[EndTime "11:59:01 PDT"]
[Termination "Guenplen won on time"]

1. d4 {[%clk 0:03:00.9]} 1... Nf6 {[%clk 0:02:59.3]} 2. Bf4 {[%clk 0:03:00.8]}
2... g6 {[%clk 0:02:57.6]} 3. Nc3 {[%clk 0:03:00.5]} 3... d6 {[%clk 0:02:52.1]}
4. e4 {[%clk 0:02:59.7]} 4... c6 {[%clk 0:02:47.6]} 5. Qd2 {[%clk 0:02:56.3]}
5... b5 {[%clk 0:02:46.2]} 6. f3 {[%clk 0:02:56.5]} 6... Qa5 {[%clk 0:02:41.8]}
7. Nge2 {[%clk 0:02:51.4]} 7... b4 {[%clk 0:02:40.9]} 8. Nd1 {[%clk 0:02:50.9]}
8... e5 {[%clk 0:02:40]} 9. Bg5 {[%clk 0:02:47.7]} 9... Nbd7 {[%clk 0:02:39.1]}
10. a3 {[%clk 0:02:42.6]} 10... Rb8 {[%clk 0:02:24.4]} 11. Ne3 {[%clk
0:02:30.1]} 11... Ba6 {[%clk 0:02:18.8]} 12. h4 {[%clk 0:02:20.2]} 12... h6
{[%clk 0:02:13.3]} 13. Bxf6 {[%clk 0:02:19.8]} 13... Nxf6 {[%clk 0:02:14.2]} 14.
Nc1 {[%clk 0:02:19.5]} 14... Bxf1 {[%clk 0:02:06.8]} 15. Rxf1 {[%clk 0:02:20.4]}
15... Qa6 {[%clk 0:01:45.4]} 16. Nb3 {[%clk 0:02:16.5]} 16... bxa3 {[%clk
0:01:10.1]} 17. Rxa3 {[%clk 0:02:17.4]} 17... Qb7 {[%clk 0:01:10.6]} 18. d5
{[%clk 0:02:13.9]} 18... cxd5 {[%clk 0:01:08.3]} 19. Nxd5 {[%clk 0:02:14.8]}
19... Nxd5 {[%clk 0:01:07]} 20. Qxd5 {[%clk 0:02:15.7]} 20... Qxd5 {[%clk
0:01:02.7]} 21. exd5 {[%clk 0:02:15.2]} 21... Be7 {[%clk 0:01:03.2]} 22. g3
{[%clk 0:02:08.1]} 22... Rb7 {[%clk 0:01:00.6]} 23. Kd2 {[%clk 0:02:07.5]} 23...
Kd7 {[%clk 0:00:59.2]} 24. Rfa1 {[%clk 0:02:06.6]} 24... Ra8 {[%clk 0:00:54]}
25. R1a2 {[%clk 0:01:55.1]} 25... Bd8 {[%clk 0:00:53.6]} 26. Na5 {[%clk
0:01:47.3]} 26... Rb5 {[%clk 0:00:45.5]} 27. c4 {[%clk 0:01:43.8]} 27... Rxa5
{[%clk 0:00:43.4]} 28. Rxa5 {[%clk 0:01:44.4]} 28... Bxa5+ {[%clk 0:00:44.3]}
29. Rxa5 {[%clk 0:01:44.7]} 29... a6 {[%clk 0:00:45.2]} 30. b4 {[%clk
0:01:42.5]} 30... Kc7 {[%clk 0:00:39.2]} 31. c5 {[%clk 0:01:23.9]} 31... dxc5
{[%clk 0:00:32.1]} 32. bxc5 {[%clk 0:01:24.8]} 32... Rd8 {[%clk 0:00:32.5]} 33.
d6+ {[%clk 0:01:24.1]} 33... Kc6 {[%clk 0:00:33]} 34. Kc3 {[%clk 0:01:19.3]}
34... Kd5 {[%clk 0:00:33.3]} 35. g4 {[%clk 0:00:59.8]} 35... f5 {[%clk
0:00:27.2]} 36. g5 {[%clk 0:00:57.2]} 36... hxg5 {[%clk 0:00:25.7]} 37. hxg5
{[%clk 0:00:58.1]} 37... Rc8 {[%clk 0:00:24.2]} 38. Kd3 {[%clk 0:00:54.3]} 38...
Rd8 {[%clk 0:00:18.6]} 39. Ke3 {[%clk 0:00:48.9]} 39... Rb8 {[%clk 0:00:16.9]}
40. Rxa6 {[%clk 0:00:36.4]} 40... Kxc5 {[%clk 0:00:15.9]} 41. d7 {[%clk
0:00:36.6]} 41... Rd8 {[%clk 0:00:15.2]} 42. Rxg6 {[%clk 0:00:36.4]} 42... Rxd7
{[%clk 0:00:15]} 43. Rf6 {[%clk 0:00:36.4]} 43... Rd1 {[%clk 0:00:05.6]} 44.
Rxf5 {[%clk 0:00:33.1]} 44... Kd6 {[%clk 0:00:05.2]} 45. Rf6+ {[%clk 0:00:31.3]}
45... Kd5 {[%clk 0:00:05]} 46. Kf2 {[%clk 0:00:27]} 46... Rh1 {[%clk 0:00:03.3]}
47. Kg3 {[%clk 0:00:22]} 47... Rg1+ {[%clk 0:00:03.4]} 48. Kh4 {[%clk
0:00:22.2]} 48... Kd4 {[%clk 0:00:03.7]} 49. Kh5 {[%clk 0:00:19.7]} 49... Rh1+
{[%clk 0:00:02.1]} 50. Kg6 {[%clk 0:00:19.4]} 50... Ke3 {[%clk 0:00:02.3]} 51.
Kf7 {[%clk 0:00:17.9]} 51... Ra1 {[%clk 0:00:01.5]} 52. g6 {[%clk 0:00:17.7]}
52... Ra7+ {[%clk 0:00:01.9]} 53. Kg8 {[%clk 0:00:17.3]} 53... e4 {[%clk
0:00:02.4]} 54. fxe4 {[%clk 0:00:16.4]} 54... Kxe4 {[%clk 0:00:03.3]} 55. g7
{[%clk 0:00:16.6]} 55... Ke5 {[%clk 0:00:03.7]} 56. Rf7 {[%clk 0:00:15.7]} 56...
Ra1 {[%clk 0:00:04.1]} 57. Rf2 {[%clk 0:00:12.7]} 57... Ke6 {[%clk 0:00:02.7]}
58. Rh2 {[%clk 0:00:08.5]} 58... Kf6 {[%clk 0:00:02.5]} 59. Kh8 {[%clk
0:00:08.1]} 1-0